lending/lending_fUSD_20251124
["ID","MTS","AMOUNT","RATE_DAILY","PERIOD"]
[394816005,1763977859178,-500.0,0.00041919,31]
[394816006,1763977859187,-500.0,0.00041919,32]
[394816007,1763977859197,-500.0,0.00041919,33]
[394816008,1763977859206,-500.0,0.00041919,33]
[394816009,1763977859217,-500.0,0.00041919,30]
[394816010,1763977859227,-500.0,0.00041919,31]
[394816011,1763977859236,-500.0,0.00041919,32]
[394816012,1763977859246,-500.0,0.00041919,33]
[394816013,1763977859254,-168.0,0.0004192,2]
[394816014,1763977859264,-500.0,0.0004192,60]
[394816015,1763977859273,-375.55651445,0.0004192,60]
[394816016,1763977859283,-500.0,0.0004192,60]
[394816017,1763977859295,-557.5788265,0.0004192,60]
[394816018,1763977859304,-500.0,0.0004192,60]
[394816019,1763977859313,-500.0,0.0004192,60]
[394816020,1763977859323,-500.0,0.0004192,60]
[394816021,1763977859333,-500.0,0.0004194,120]
[394816022,1763977859343,-559.19188,0.0004194,120]
[394816023,1763977859352,-500.0,0.0004194,120]
[394816024,1763977859362,-537.6845,0.0004194,120]
[394816025,1763977859372,-500.0,0.0004194,120]
[394816026,1763977859382,-500.0,0.0004194,120]
[394816027,1763977859392,-500.0,0.0004194,120]
[394816028,1763977859402,-2734.46830451,0.00041944,30]
[394816029,1763977859412,-500.0,0.00041944,30]
[394816030,1763977859421,-539.24,0.00041944,30]
[394816031,1763977859430,-500.0,0.00041944,30]
[394816032,1763977859439,-518.5,0.00041944,30]
[394816033,1763977859449,-500.0,0.00041944,30]
[394816034,1763977859459,-500.0,0.00041944,30]
[394816035,1763977859469,-277.35679052,0.00041944,30]
[394816036,1763977859479,-500.0,0.00041944,30]
[394816037,1763977859489,-500.0,0.00041955,8]
[394816038,1763977859498,-585.04,0.00041956,8]
[394816039,1763977859508,-500.0,0.00041956,8]
[394816040,1763977859518,-1073.11,0.00041956,8]
[394816041,1763977859528,-500.0,0.00041956,8]
[394816042,1763977859538,-747.02,0.00041956,8]
[394816043,1763977859548,-500.0,0.00041956,8]
[394816044,1763977859558,-955.65,0.00041956,8]
[394816045,1763977859568,-316.90797564,0.0004197,7]
[394816046,1763977859579,-316.90797564,0.0004197,7]
[394816047,1763977859588,-150.0,0.00041973,30]
[394816048,1763977859598,-182.86,0.00041973,30]
[394816049,1763977859607,-835.07,0.00041973,120]
[394816050,1763977859616,-7501.69176739,0.00041975,30]
[394816051,1763977859626,-7501.69176739,0.00041975,30]
[394816052,1763977859636,-7394.26833993,0.00041975,30]
[394816053,1763977859649,-107.42342746,0.00041975,30]
[394816054,1763977859658,-7501.69176739,0.00041975,30]
[394816055,1763977859668,-6888.0,0.00041975,120]
[394816056,1763977859677,-500.0,0.00041975,120]
[394816057,1763977859687,-520.0,0.00041975,120]
[394816058,1763977859696,-500.0,0.00041975,120]
[394816059,1763977859706,-500.0,0.00041975,120]
[394816060,1763977859716,-500.0,0.00041975,120]
[394816061,1763977859726,-500.0,0.00041975,120]
[394816062,1763977859738,-500.0,0.00041975,120]
[394816063,1763977859748,-605.31257722,0.00041976,30]
[394816064,1763977859757,-605.31257722,0.00041976,30]
[394816065,1763977859766,-1096.0,0.00041976,30]
[394816066,1763977859775,-500.0,0.00041976,60]
[394816067,1763977859784,-500.0,0.00041976,60]
[394816068,1763977859794,-1096.0,0.00041976,30]
[394816069,1763977859803,-568.5648569,0.00041977,7]
[394816070,1763977859812,-2198.03444201,0.00041979,34]
[394816071,1763977859824,-43033.20639999,0.00041979,34]
[394816072,1763977859835,-4768.759158,0.00041979,34]
[394816073,1763977859845,-16197.240802,0.00041979,35]
[394816102,1763978442399,500.0,0.00036633,120]
[394816103,1763978442424,718.28328819,0.00036633,120]
[394816106,1763978571655,155.75,0.00013699,2]
[394816107,1763978772390,186.57498517,0.00013699,2]
[394816108,1763979031330,-155.75,0.00023973,2]
[394816109,1763979031341,-275.890691,0.00025,2]
[394816110,1763979031351,-250.0,0.0002637,2]
[394816111,1763979031362,-155.75,0.00034247,2]
[394816112,1763979031373,-1034.49,0.00036,2]
[394816113,1763979031383,-300.0,0.00036275,3]
[394816114,1763979031393,-1200.0,0.00036275,3]
[394816115,1763979031404,-13578.77606434,0.00036276,2]
[394816116,1763979031416,-17232.8,0.00036276,2]
[394816117,1763979031427,-17243.3398,0.00036276,2]
[394816118,1763979031439,-1537.36,0.00036276,2]
[394816119,1763979031450,-10988.38347353,0.00036276,2]
[394816120,1763979031463,-20915.57069872,0.00036276,2]
[394816121,1763979031476,-404.92308295,0.00036276,2]
[394816122,1763979031489,-258.903,0.00036276,2]
[394816123,1763979031502,-421.755,0.00036276,2]
[394816124,1763979031514,-4423.2,0.00036276,2]
[394816125,1763979031528,-115.79888046,0.00036276,2]
[394816126,1763979031538,-2755.05,0.0003631,2]
[394816127,1763979031548,-200.0,0.00036322,2]
[394816128,1763979031557,-1986.45727145,0.00036343,2]
[394816154,1763979037389,-109.02272855,0.00036343,2]
[394816155,1763979037399,-200.0,0.00036351,2]
[394816156,1763979037409,-1432.92,0.00036433,2]
[394816157,1763979037425,-163.03,0.00036433,2]
[394816158,1763979037440,-1034.49,0.0003672,2]
[394816159,1763979037449,-176.7505357,0.00036723,10]
[394816163,1763979037532,-5.4794643,0.00036723,10]
[394816165,1763979037541,-1092.0,0.00036732,3]
[394816167,1763979037550,-2751.0,0.00036733,120]
[394816169,1763979037560,-150.0,0.00036864,2]
[394816171,1763979037569,-512.40242377,0.00036877,30]
[394816173,1763979037579,-352.0989,0.00036888,7]
[394816175,1763979037588,-2614.33980064,0.00037,7]
[394816177,1763979037598,-580.32920518,0.00037099,2]
[394816179,1763979037607,-1737.89938021,0.000373,2]
[394816181,1763979037617,-468.17096377,0.00037349,48]
[394816183,1763979037628,-501.17903623,0.00037349,48]
[394816185,1763979037638,-850.0,0.00037349,2]
[394816187,1763979037647,-500.0,0.0003735,8]
[394816189,1763979037659,-500.87933327,0.0003735,8]
[394816191,1763979037669,-500.0,0.0003735,8]
[394816193,1763979037678,-500.87241894,0.0003735,8]
[394816194,1763979037687,-500.0,0.0003735,8]
[394816195,1763979037696,-42.52560866,0.0003735,8]
[394816196,1763979039395,-272.75003526,0.0003735,8]
[394816199,1763979039500,-184.72435608,0.0003735,8]
[394816201,1763979039510,-502.35114276,0.0003735,8]
[394816203,1763979039520,-500.0,0.0003735,8]
[394816205,1763979039530,-500.0,0.0003735,8]
[394816207,1763979039539,-500.0,0.0003735,8]
[394816209,1763979039548,-500.0,0.0003735,8]
[394816211,1763979039558,-500.0,0.0003735,8]
[394816213,1763979039569,-500.0,0.0003735,2]
[394816215,1763979039579,-500.0,0.0003735,8]
[394816217,1763979039589,-500.0,0.0003735,2]
[394816219,1763979039599,-500.0,0.0003735,8]
[394816221,1763979039609,-500.0,0.0003735,8]
[394816223,1763979039619,-635.0450908,0.0003735,8]
[394816225,1763979039629,-500.0,0.0003735,8]
[394816228,1763979039638,-500.0,0.0003735,8]
[394816230,1763979039648,-500.0,0.0003735,8]
[394816232,1763979039662,-500.0,0.0003735,8]
[394816233,1763979039671,-500.0,0.0003735,8]
[394816235,1763979039681,-500.0,0.0003735,8]
[394816238,1763979039691,-500.0,0.0003735,8]
[394816240,1763979039703,-500.0,0.0003735,8]
[394816242,1763979039713,-500.0,0.0003735,8]
[394816244,1763979039723,-500.0,0.0003735,8]
[394816246,1763979039735,-500.0,0.0003735,8]
[394816248,1763979039745,-542.01873034,0.0003735,8]
[394816250,1763979039754,-500.0,0.0003735,8]
[394816252,1763979039764,-500.0,0.0003735,8]
[394816254,1763979039774,-441.23912545,0.0003735,8]
[394816256,1763979039783,-500.0,0.0003735,8]
[394816258,1763979039793,-560.53591205,0.0003735,8]
[394816260,1763979039804,-299.93333211,0.0003735,8]
[394816262,1763979039813,-594.8732545,0.0003735,8]
[394816265,1763979039824,-500.0,0.0003735,8]
[394816268,1763979039835,-500.0,0.0003735,8]
[394816270,1763979039844,-500.0,0.0003735,8]
[394816272,1763979039853,-500.0,0.0003735,8]
[394816274,1763979039863,-182.07244061,0.0003735,8]
[394816276,1763979039872,-500.0,0.0003735,8]
[394816278,1763979039882,-500.0,0.0003735,8]
[394816280,1763979039892,-500.0,0.0003735,8]
[394816282,1763979039901,-500.0,0.0003735,8]
[394816284,1763979039911,-519.14349668,0.0003735,8]
[394816286,1763979039921,-500.0,0.0003735,8]
[394816288,1763979039930,-500.0,0.0003735,8]
[394816290,1763979039939,-500.0,0.0003735,8]
[394816292,1763979039947,-500.0,0.0003735,8]
[394816294,1763979039957,-500.0,0.0003735,8]
[394816295,1763979039966,-500.0,0.0003735,8]
[394816297,1763979039976,-500.0,0.0003735,8]
[394816300,1763979039986,-500.0,0.0003735,8]
[394816301,1763979039995,-500.0,0.0003735,8]
[394816303,1763979040004,-500.0,0.0003735,8]
[394816306,1763979040014,-609.87085177,0.0003735,8]
[394816307,1763979040023,-500.0,0.0003735,8]
[394816309,1763979040033,-500.0,0.0003735,8]
[394816311,1763979040042,-229.75,0.0003735,14]
[394816313,1763979040051,-500.0,0.00037373,5]
[394816315,1763979040060,-8102.9622387,0.00037413,2]
[394816318,1763979040070,-1034.49,0.0003744,2]
[394816319,1763979040079,-168.04371874,0.00037461,10]
[394816322,1763979040089,-230.31021412,0.00037461,15]
[394816324,1763979040098,-201.81121325,0.00037461,2]
[394816326,1763979040108,-3720.24,0.00037503,2]
[394816328,1763979040117,-3166.16,0.00037503,2]
[394816330,1763979040126,-5704.36800273,0.00037504,4]
[394816332,1763979040136,-300.0,0.00037512,2]
[394816334,1763979040144,-500.0,0.00037512,8]
[394816336,1763979040154,-500.0,0.00037512,8]
[394816337,1763979040163,-500.0,0.00037512,5]
[394816339,1763979040173,-500.0,0.00037512,8]
[394816340,1763979040182,-500.0,0.00037512,8]
[394816342,1763979040192,-500.0,0.00037512,8]
[394816343,1763979040201,-671.22,0.00037512,8]
[394816344,1763979040210,-500.0,0.00037512,8]
[394816345,1763979040220,-500.0,0.00037512,8]
[394816346,1763979040229,-500.0,0.00037512,8]
[394816347,1763979040239,-521.78030273,0.00037512,8]
[394816348,1763979040248,-500.0,0.00037512,8]
[394816349,1763979040257,-501.06351093,0.00037512,8]
[394816350,1763979040267,-376.75736761,0.00037512,8]
[394816351,1763979040276,-500.0,0.00037512,8]
[394816352,1763979040286,-500.0,0.00037512,8]
[394816353,1763979040295,-500.0,0.00037512,8]
[394816354,1763979040305,-519.94406956,0.00037512,8]
[394816355,1763979040315,-500.0,0.00037512,8]
[394816356,1763979040324,-500.0,0.00037512,8]
[394816357,1763979040333,-500.0,0.00037512,8]
[394816358,1763979040342,-500.0,0.00037512,8]
[394816359,1763979040352,-182.63379978,0.00037512,8]
[394816360,1763979040362,-500.0,0.00037512,8]
[394816361,1763979040371,-500.0,0.00037512,8]
[394816362,1763979040380,-500.0,0.00037512,8]
[394816363,1763979040389,-500.0,0.00037512,8]
[394816364,1763979040398,-500.0,0.00037512,8]
[394816365,1763979040407,-619.30534181,0.00037512,15]
[394816366,1763979040416,-500.0,0.00037512,15]
[394816367,1763979040426,-421.06398491,0.00037512,2]
[394816368,1763979040436,-204.56195903,0.00037512,7]
[394816369,1763979040445,-500.0,0.00037512,15]
[394816370,1763979040455,-500.0,0.00037512,15]
[394816371,1763979040464,-183.02053666,0.00037512,7]
[394816372,1763979040474,-500.0,0.00037512,15]
[394816373,1763979040483,-500.0,0.00037512,15]
[394816374,1763979040493,-197.95867,0.00037512,15]
[394816375,1763979040502,-630.03914993,0.00037512,15]
[394816376,1763979040512,-500.0,0.00037512,15]
[394816377,1763979040521,-500.0,0.00037512,15]
[394816378,1763979040531,-500.0,0.00037512,15]
[394816379,1763979040541,-500.0,0.00037512,15]
[394816380,1763979040550,-500.0,0.00037512,15]
[394816381,1763979040559,-500.0,0.00037512,15]
[394816382,1763979040568,-500.0,0.00037512,15]
[394816383,1763979040578,-500.0,0.00037512,15]
[394816384,1763979040587,-500.0,0.00037512,15]
[394816385,1763979040597,-500.0,0.00037512,15]
[394816386,1763979040606,-500.0,0.00037512,15]
[394816387,1763979040615,-500.0,0.00037512,15]
[394816388,1763979040625,-500.0,0.00037512,15]
[394816389,1763979040634,-500.0,0.00037512,15]
[394816390,1763979040644,-500.0,0.00037512,15]
[394816391,1763979040653,-500.0,0.00037512,15]
[394816392,1763979040667,-500.0,0.00037512,15]
[394816393,1763979040676,-500.0,0.00037512,15]
[394816394,1763979040685,-292.68378132,0.00037512,15]
[394816395,1763979040694,-500.0,0.00037512,15]
[394816396,1763979040705,-500.0,0.00037512,15]
[394816397,1763979040715,-500.0,0.00037512,15]
[394816398,1763979040726,-500.0,0.00037512,15]
[394816399,1763979040738,-500.0,0.00037512,15]
[394816400,1763979040747,-500.0,0.00037512,15]
[394816401,1763979040757,-500.0,0.00037512,15]
[394816402,1763979040766,-500.0,0.00037512,15]
[394816403,1763979040776,-500.0,0.00037512,15]
[394816404,1763979040786,-500.0,0.00037512,15]
[394816405,1763979040795,-500.0,0.00037512,15]
[394816406,1763979040805,-500.0,0.00037512,15]
[394816407,1763979040814,-500.0,0.00037512,15]
[394816408,1763979040824,-406.70491736,0.00037512,15]
[394816409,1763979040834,-500.0,0.00037512,15]
[394816410,1763979040844,-500.0,0.00037512,15]
[394816411,1763979040854,-500.0,0.00037512,15]
[394816412,1763979040864,-500.0,0.00037512,15]
[394816413,1763979040874,-500.0,0.00037512,15]
[394816414,1763979040883,-500.0,0.00037512,15]
[394816415,1763979040894,-500.0,0.00037512,15]
[394816416,1763979040903,-500.0,0.00037512,15]
[394816417,1763979040914,-500.0,0.00037512,15]
[394816418,1763979040923,-500.0,0.00037512,15]
[394816419,1763979040933,-500.0,0.00037512,15]
[394816420,1763979040943,-500.0,0.00037513,2]
[394816421,1763979040953,-500.0,0.00037513,8]
[394816422,1763979040962,-500.0,0.00037513,8]
[394816423,1763979040973,-518.68498506,0.00037513,8]
[394816424,1763979040983,-500.0,0.00037513,8]
[394816425,1763979040993,-500.0,0.00037513,8]
[394816426,1763979041003,-500.0,0.00037513,8]
[394816427,1763979041013,-500.0,0.00037513,8]
[394816428,1763979041022,-500.0,0.00037513,8]
[394816429,1763979041032,-500.0,0.00037513,8]
[394816430,1763979041041,-500.0,0.00037513,8]
[394816431,1763979041050,-500.0,0.00037513,8]
[394816432,1763979041059,-500.0,0.00037513,8]
[394816433,1763979041069,-500.0,0.00037513,8]
[394816434,1763979041079,-500.0,0.00037513,8]
[394816435,1763979041089,-500.0,0.00037513,8]
[394816436,1763979041098,-500.0,0.00037513,8]
[394816437,1763979041108,-505.69015021,0.00037513,8]
[394816438,1763979041118,-500.0,0.00037513,8]
[394816439,1763979041128,-509.10304137,0.00037513,8]
[394816440,1763979041137,-527.47304181,0.00037513,8]
[394816441,1763979041147,-500.0,0.00037513,8]
[394816442,1763979041156,-500.0,0.00037513,8]
[394816443,1763979041166,-500.0,0.00037513,8]
[394816444,1763979041175,-500.0,0.00037513,8]
[394816445,1763979041185,-500.0,0.00037513,8]
[394816446,1763979041194,-500.0,0.00037513,8]
[394816447,1763979041204,-500.0,0.00037513,8]
[394816448,1763979041213,-500.0,0.00037513,8]
[394816449,1763979041223,-500.0,0.00037513,8]
[394816450,1763979041234,-500.0,0.00037513,8]
[394816451,1763979041244,-500.0,0.00037513,8]
[394816452,1763979041254,-500.0,0.00037513,8]
[394816453,1763979041263,-512.86790917,0.00037513,8]
[394816454,1763979041273,-617.63340508,0.00037513,8]
[394816455,1763979041283,-500.0,0.00037513,8]
[394816456,1763979041292,-500.0,0.00037513,8]
[394816457,1763979041302,-500.0,0.00037513,8]
[394816458,1763979041311,-500.0,0.00037513,8]
[394816459,1763979041321,-500.0,0.00037513,8]
[394816460,1763979041331,-500.0,0.00037513,8]
[394816461,1763979041341,-500.0,0.00037513,8]
[394816462,1763979041351,-500.0,0.00037513,8]
[394816463,1763979041360,-500.0,0.00037513,8]
[394816464,1763979041372,-503.5487304,0.00037513,8]
[394816465,1763979041381,-500.0,0.00037513,8]
[394816466,1763979041391,-500.0,0.00037513,8]
[394816467,1763979041401,-500.0,0.00037513,8]
[394816468,1763979041411,-500.0,0.00037513,8]
[394816469,1763979041422,-500.0,0.00037513,8]
[394816470,1763979041432,-500.0,0.00037513,8]
[394816471,1763979041442,-500.0,0.00037513,8]
[394816472,1763979041452,-359.3223753,0.00037513,8]
[394816473,1763979041462,-500.0,0.00037513,8]
[394816474,1763979041474,-500.0,0.00037513,8]
[394816475,1763979041484,-500.0,0.00037513,8]
[394816476,1763979041493,-500.0,0.00037513,8]
[394816477,1763979041502,-500.0,0.00037513,8]
[394816478,1763979041512,-505.77305794,0.00037513,8]
[394816479,1763979041521,-500.0,0.00037513,8]
[394816480,1763979041531,-500.0,0.00037513,8]
[394816481,1763979041541,-500.0,0.00037513,8]
[394816482,1763979041550,-500.0,0.00037513,8]
[394816483,1763979041560,-500.0,0.00037513,8]
[394816484,1763979041570,-500.0,0.00037513,8]
[394816485,1763979041580,-500.0,0.00037513,8]
[394816486,1763979041590,-500.0,0.00037513,8]
[394816487,1763979041600,-500.0,0.00037513,8]
[394816488,1763979041609,-500.0,0.00037513,8]
[394816489,1763979041784,-500.0,0.00037513,8]
[394816490,1763979041793,-500.0,0.00037513,8]
[394816491,1763979041802,-500.0,0.00037513,8]
[394816492,1763979041811,-500.0,0.00037513,8]
[394816493,1763979041821,-500.0,0.00037513,8]
[394816494,1763979041831,-601.86575046,0.00037513,8]
[394816495,1763979041841,-500.0,0.00037513,8]
[394816496,1763979041850,-500.0,0.00037513,8]
[394816497,1763979041860,-500.0,0.00037513,8]
[394816498,1763979041870,-527.5258592,0.00037513,8]
[394816499,1763979041879,-500.0,0.00037513,8]
[394816500,1763979041889,-500.0,0.00037513,8]
[394816501,1763979041898,-500.0,0.00037513,8]
[394816502,1763979041908,-500.0,0.00037513,8]
[394816503,1763979041918,-507.57534815,0.00037513,8]
[394816504,1763979041928,-500.0,0.00037513,8]
[394816505,1763979041938,-500.0,0.00037513,8]
[394816506,1763979041948,-500.0,0.00037513,8]
[394816507,1763979041958,-500.0,0.00037513,8]
[394816508,1763979041968,-833.33,0.00037513,8]
[394816509,1763979041978,-500.0,0.00037513,8]
[394816510,1763979041988,-500.0,0.00037513,8]
[394816511,1763979041997,-500.0,0.00037513,8]
[394816512,1763979042007,-278.97267708,0.00037513,8]
[394816513,1763979042017,-500.0,0.00037513,8]
[394816514,1763979042027,-500.0,0.00037513,8]
[394816515,1763979042037,-506.93664282,0.00037513,8]
[394816516,1763979042047,-500.0,0.00037513,8]
[394816517,1763979042057,-504.19463681,0.00037513,8]
[394816518,1763979042067,-500.0,0.00037513,8]
[394816519,1763979042076,-500.0,0.00037513,8]
[394816520,1763979042086,-500.0,0.00037513,8]
[394816521,1763979042096,-500.0,0.00037513,8]
[394816522,1763979042106,-500.0,0.00037513,8]
[394816523,1763979042115,-500.0,0.00037513,8]
[394816524,1763979042125,-500.0,0.00037513,8]
[394816525,1763979042134,-500.0,0.00037513,7]
[394816526,1763979042144,-500.0,0.00037513,8]
[394816527,1763979042154,-500.0,0.00037513,8]
[394816528,1763979042163,-500.0,0.00037513,8]
[394816529,1763979042173,-524.79874583,0.00037513,8]
[394816530,1763979042182,-500.0,0.00037513,8]
[394816531,1763979042192,-500.0,0.00037513,8]
[394816532,1763979042202,-500.0,0.00037513,8]
[394816533,1763979042212,-500.0,0.00037513,8]
[394816534,1763979042221,-500.0,0.00037513,8]
[394816535,1763979042232,-541.38211058,0.00037513,8]
[394816536,1763979042241,-500.0,0.00037513,8]
[394816537,1763979042251,-623.60088413,0.00037513,8]
[394816538,1763979042260,-517.14791354,0.00037513,8]
[394816539,1763979042269,-500.0,0.00037513,8]
[394816540,1763979042279,-500.0,0.00037513,8]
[394816541,1763979042288,-500.0,0.00037513,8]
[394816542,1763979042298,-307.30493538,0.00037513,8]
[394816543,1763979042307,-167.586562,0.00037513,8]
[394816544,1763979042317,-500.0,0.00037513,8]
[394816545,1763979042327,-515.50339207,0.00037513,8]
[394816546,1763979042337,-500.0,0.00037513,8]
[394816547,1763979042346,-500.0,0.00037513,8]
[394816548,1763979042356,-500.0,0.00037513,8]
[394816549,1763979042365,-500.0,0.00037513,8]
[394816550,1763979042374,-500.0,0.00037513,7]
[394816551,1763979042383,-535.43,0.00037513,8]
[394816552,1763979042393,-500.0,0.00037513,8]
[394816553,1763979042403,-500.0,0.00037513,8]
[394816554,1763979042412,-500.0,0.00037513,8]
[394816555,1763979042422,-505.54038896,0.00037513,8]
[394816556,1763979042432,-500.0,0.00037513,8]
[394816557,1763979042442,-500.0,0.00037513,8]
[394816558,1763979042451,-283.620263,0.00037513,8]
[394816559,1763979042461,-500.0,0.00037513,8]
[394816560,1763979042470,-612.37142222,0.00037513,8]
[394816561,1763979042481,-515.89,0.00037513,8]
[394816562,1763979042490,-500.0,0.00037513,8]
[394816563,1763979042499,-500.0,0.00037513,8]
[394816564,1763979042509,-500.0,0.00037513,8]
[394816565,1763979042519,-500.0,0.00037513,8]
[394816566,1763979042529,-500.0,0.00037513,8]
[394816567,1763979042539,-500.0,0.00037513,8]
[394816568,1763979042548,-500.0,0.00037513,8]
[394816569,1763979042557,-500.0,0.00037513,8]
[394816570,1763979042566,-500.0,0.00037513,8]
[394816571,1763979042575,-500.0,0.00037513,8]
[394816572,1763979042584,-527.38143707,0.00037513,8]
[394816573,1763979042594,-1000.0,0.00037513,8]
[394816574,1763979042604,-500.0,0.00037513,8]
[394816575,1763979042613,-500.0,0.00037513,8]
[394816576,1763979042623,-500.0,0.00037513,8]
[394816577,1763979042633,-574.55,0.00037513,8]
[394816578,1763979042643,-500.0,0.00037513,8]
[394816579,1763979042652,-500.0,0.00037513,8]
[394816580,1763979042666,-500.0,0.00037513,8]
[394816581,1763979042675,-504.88731442,0.00037513,8]
[394816582,1763979042685,-160.962503,0.00037513,8]
[394816583,1763979042695,-500.0,0.00037513,8]
[394816584,1763979042706,-284.53887066,0.00037513,8]
[394816585,1763979042716,-669.704569,0.00037513,8]
[394816586,1763979042725,-511.24229073,0.00037513,8]
[394816587,1763979042734,-292.33130355,0.00037513,8]
[394816588,1763979042744,-500.0,0.00037513,8]
[394816589,1763979042754,-500.0,0.00037513,8]
[394816590,1763979042763,-629.80876067,0.00037513,8]
[394816591,1763979042772,-540.51669104,0.00037513,8]
[394816592,1763979042781,-500.0,0.00037513,8]
[394816593,1763979042791,-539.56422392,0.00037513,8]
[394816594,1763979042800,-500.0,0.00037513,8]
[394816595,1763979042809,-371.68396507,0.00037513,8]
[394816596,1763979042819,-507.64540538,0.00037513,8]
[394816597,1763979042828,-500.0,0.00037513,8]
[394816598,1763979042838,-237.37495,0.00037513,8]
[394816599,1763979042847,-500.0,0.00037513,8]
[394816600,1763979042857,-500.0,0.00037513,8]
[394816601,1763979042866,-500.0,0.00037513,8]
[394816602,1763979042876,-500.0,0.00037513,8]
[394816603,1763979042886,-500.0,0.00037513,8]
[394816604,1763979042895,-500.0,0.00037513,8]
[394816605,1763979042905,-546.32,0.00037513,8]
[394816606,1763979042915,-500.0,0.00037513,8]
[394816607,1763979042924,-500.0,0.00037513,8]
[394816608,1763979042934,-500.0,0.00037513,8]
[394816609,1763979042943,-492.44566275,0.00037513,8]
[394816610,1763979042952,-500.0,0.00037513,8]
[394816611,1763979042962,-500.0,0.00037513,8]
[394816612,1763979042972,-500.0,0.00037513,8]
[394816613,1763979042983,-312.3901335,0.00037513,8]
[394816614,1763979042992,-500.0,0.00037513,8]
[394816615,1763979043002,-559.50986339,0.00037513,8]
[394816616,1763979043012,-500.0,0.00037513,8]
[394816617,1763979043022,-500.0,0.00037513,8]
[394816618,1763979043031,-500.0,0.00037513,8]
[394816619,1763979043042,-500.0,0.00037513,8]
[394816620,1763979043052,-500.0,0.00037513,8]
[394816621,1763979043062,-280.69488454,0.00037513,8]
[394816622,1763979043072,-500.0,0.00037513,8]
[394816623,1763979043083,-505.4435037,0.00037513,8]
[394816624,1763979043093,-500.0,0.00037513,8]
[394816625,1763979043103,-500.0,0.00037513,8]
[394816626,1763979043112,-500.0,0.00037513,8]
[394816627,1763979043122,-500.0,0.00037513,8]
[394816628,1763979043132,-500.0,0.00037513,8]
[394816629,1763979043141,-500.0,0.00037513,8]
[394816630,1763979043151,-615.0,0.00037513,8]
[394816631,1763979043161,-500.0,0.00037513,8]
[394816632,1763979043171,-293.62136585,0.00037513,8]
[394816633,1763979043181,-500.0,0.00037513,8]
[394816634,1763979043191,-500.0,0.00037513,8]
[394816635,1763979043201,-500.0,0.00037513,8]
[394816636,1763979043211,-523.18684733,0.00037513,8]
[394816637,1763979043221,-500.0,0.00037513,8]
[394816638,1763979043233,-500.0,0.00037513,8]
[394816639,1763979043244,-501.621194,0.00037513,8]
[394816640,1763979043254,-500.0,0.00037513,8]
[394816641,1763979043264,-500.0,0.00037513,8]
[394816642,1763979043274,-500.0,0.00037513,8]
[394816643,1763979043284,-500.0,0.00037513,8]
[394816644,1763979043294,-500.0,0.00037513,8]
[394816645,1763979043304,-500.0,0.00037513,8]
[394816646,1763979043313,-500.0,0.00037513,8]
[394816647,1763979043324,-500.0,0.00037513,8]
[394816648,1763979043334,-500.0,0.00037513,8]
[394816649,1763979043344,-500.0,0.00037513,8]
[394816650,1763979043353,-500.0,0.00037513,8]
[394816651,1763979043362,-500.0,0.00037513,8]